bitfinex/quotes_ETHUSD_20220311
["timestamp","ask_amount","ask_price","bid_price","bid_amount"]
[1646977488203,1.13971561,2555.9,2555.8,0.00334475]
[1646977488601,2.934027,2556.1,2555.8,0.00334475]
[1646977488803,1.95607,2556.1,2555.6,0.07006276]
[1646977489203,1.95607,2556.1,2555.8,0.97794]
[1646977489403,0.97804,2556.1,2555.8,0.97794]
[1646977489604,0.9981148,2556.1,2555.8,0.97794]
[1646977490407,0.9981148,2556.1,2555.8,0.98128475]
[1646977490805,0.9981148,2556.1,2555.8,0.00334475]
[1646977491247,0.9981148,2556.1,2555.7,0.07071916]
[1646977491445,0.9981148,2556.1,2555.8,0.00297683]
[1646977492147,1.9760848,2556.1,2555.8,0.00297683]
[1646977492553,1.9760848,2556.1,2555.7,0.07071916]
[1646977492755,1.9760848,2556.1,2555.8,0.00297683]
[1646977493754,1.9953497,2556.1,2555.7,0.07071916]
[1646977493955,1.9953497,2556.1,2555.8,0.00297683]
[1646977494156,1.9953497,2556.1,2555.8,0.98090683]
[1646977494801,1.9953497,2556.1,2555.8,0.97793]
[1646977495199,0.04540565,2556.0,2555.8,0.00267497]
[1646977495800,0.08474535,2556.0,2555.8,0.00267497]
[1646977496001,0.08474535,2556.0,2555.4,11.94897]
[1646977496203,0.08474535,2556.0,2555.5,0.97798]
[1646977496402,0.0393397,2556.0,2555.8,0.00267502]
[1646977497202,0.0393397,2556.0,2555.5,0.08751891]
[1646977497407,0.0393397,2556.0,2555.6,0.97795]
[1646977497607,0.0393397,2556.0,2555.8,0.00267502]
[1646977498448,0.0393397,2556.0,2555.5,10.08051891]
[1646977498647,0.0393397,2556.0,2555.5,9.993]
[1646977498847,0.08935324,2556.0,2555.8,0.00274294]
[1646977499347,0.0393397,2556.0,2555.8,0.00274294]
[1646977499747,1.95611,2555.9,2555.4,10.97102]
[1646977499948,1.95611,2555.9,2555.8,0.00274294]
[1646977500947,0.97804,2555.8,2555.4,10.97102]
[1646977501148,0.97803,2555.7,2555.4,10.97102]
[1646977501948,0.0393397,2555.7,2555.4,10.97102]
[1646977502213,0.0393397,2555.7,2555.5,0.0710784]
[1646977502214,3.97e-05,2555.7,2555.5,0.0710784]
[1646977502401,0.9778372,2556.6,2555.7,5.5007603]
[1646977502402,0.04951568,2556.6,2555.7,5.5007603]
[1646977502601,1.1646,2556.8,2555.8,0.07022132]
[1646977502805,0.05025252,2557.0,2555.8,0.07022132]
[1646977503303,0.97775,2556.7,2555.8,0.07022132]
[1646977503500,0.97775,2556.7,2556.3,0.00273398]
[1646977504102,0.97778,2556.6,2556.3,0.00273398]
[1646977504302,1.9426372,2556.6,2556.3,0.00273398]
[1646977504503,1.9426372,2556.6,2556.2,0.08042681]
[1646977504704,1.9426372,2556.6,2556.3,0.00273392]
[1646977505606,1.9426372,2556.6,2556.2,0.08042681]
[1646977505946,1.9426372,2556.6,2556.3,0.00273392]
[1646977506950,1.9426372,2556.6,2556.2,0.08042681]
[1646977507151,1.9426372,2556.6,2556.3,0.00272896]
[1646977508058,1.9426372,2556.6,2556.2,0.08042681]
[1646977508457,0.05025252,2557.0,2556.3,0.98037896]
[1646977508656,1.9553,2557.2,2556.3,0.98037896]
[1646977508856,1.9553,2557.3,2556.4,0.0741072]
[1646977509056,1.9553,2557.3,2556.5,1.95505]
[1646977509259,0.01536635,2556.9,2556.8,5.80448072]
[1646977509902,1.02302249,2556.9,2556.8,5.80448072]
[1646977514643,1.00765614,2556.9,2556.8,5.80448072]
[1646977515447,2.9329871,2557.0,2556.8,5.80448072]
[1646977515847,2.9329871,2557.0,2556.7,0.0027294]
[1646977516053,1.95544,2556.9,2556.7,0.0027294]
[1646977516252,1.95544,2556.9,2556.8,5.80448072]
[1646977520499,1.99009348,2556.9,2556.8,5.80448072]
[1646977525805,1.9889939,2556.9,2556.8,5.80448072]
[1646977527811,0.03465348,2556.9,2556.8,5.80448072]
[1646977533201,0.03465348,2556.9,2556.8,5.75448072]
[1646977533501,0.03465348,2556.9,2556.8,2.90224036]
[1646977533704,0.03465348,2556.9,2556.8,5.75448072]
[1646977536757,3.53465348,2556.9,2556.8,5.75448072]
[1646977537156,3.58559295,2556.9,2556.8,5.75448072]
[1646977538159,4.29665348,2556.9,2556.8,5.75448072]
[1646977538562,3.0,2556.8,2556.1,9.993]
[1646977538759,6.8963282,2556.7,2556.1,9.993]
[1646977538959,0.80691867,2556.6,2556.1,9.993]
[1646977539159,0.80691867,2556.6,2555.8,1.1275]
[1646977539160,0.462,2556.5,2555.8,1.1275]
[1646977539364,1.09152003,2556.0,2555.8,1.1275]
[1646977539562,1.09152003,2556.0,2555.7,7.3307603]
[1646977540799,1.09152003,2556.0,2555.7,7.33409835]
[1646977541204,2.06966003,2556.0,2555.7,7.33409835]
[1646977542904,2.06966003,2556.0,2555.7,7.3307603]
[1646977543106,1.95637,2555.9,2555.7,7.33409835]
[1646977543954,0.97814,2556.1,2555.7,7.33409835]
[1646977544155,0.97814,2556.1,2555.7,7.3307603]
[1646977544354,0.97814,2556.1,2555.7,7.33409842]
[1646977545264,1.97359372,2555.9,2555.7,7.33409842]
[1646977545461,1.97359372,2555.9,2555.7,7.3307603]
[1646977545662,1.97359372,2555.9,2555.8,0.00300419]
[1646977546565,1.97359372,2555.9,2555.7,7.3307603]
[1646977546763,1.97359372,2555.9,2555.7,7.33376455]
[1646977547701,1.97359372,2555.9,2555.7,7.3307603]
[1646977547901,1.97359372,2555.9,2555.7,7.33376461]
[1646977549002,1.97359372,2555.9,2555.7,7.3307603]
[1646977549203,1.97359372,2555.9,2555.7,7.33342996]
[1646977549903,0.991153,2556.2,2556.1,0.25]
[1646977549904,0.04877262,2556.2,2556.1,0.25]
[1646977550106,0.462,2556.5,2556.1,9.9897]
[1646977550302,0.04409245,2556.4,2556.1,9.9397]
[1646977550948,4.962,2556.7,2556.1,9.9397]
[1646977551148,0.04340608,2556.6,2556.1,9.9397]
[1646977551549,0.04340608,2556.6,2556.3,0.00266904]
[1646977551851,0.04340608,2556.6,2556.3,9.94236904]
[1646977552652,0.04340608,2556.6,2556.3,9.9397]
[1646977552951,0.04340608,2556.6,2556.3,9.94243675]
[1646977553552,0.017206,2556.4,2556.3,9.94243675]
[1646977553753,0.017206,2556.4,2556.3,9.9397]
[1646977553952,0.017206,2556.4,2556.3,9.94243675]
[1646977555000,0.017206,2556.4,2556.3,9.9397]
[1646977555805,0.479206,2556.4,2556.3,9.9397]
[1646977556804,3.979206,2556.4,2556.3,3.80096558]
[1646977557004,3.979206,2556.4,2556.3,3.32012866]
[1646977557201,4.979206,2556.4,2555.7,0.0007603]
[1646977557408,0.97834,2556.1,2555.7,0.0007603]
[1646977557606,1.44034,2556.1,2555.7,0.0007603]
[1646977557806,1.09790698,2555.9,2555.7,0.0007603]
[1646977559249,3.5,2555.8,2555.7,0.0007603]
[1646977559449,3.962,2555.8,2555.7,0.0007603]
[1646977559650,0.462,2555.8,2555.7,0.0007603]
[1646977560450,4.94043,2555.8,2555.7,0.0007603]
[1646977560853,5.94043,2555.8,2555.7,0.0007603]
[1646977564807,6.24043,2555.8,2555.7,0.0007603]
[1646977565705,7.24043,2555.8,2555.7,0.0007603]
[1646977567250,0.98010158,2555.4,2555.3,0.2007603]
[1646977567453,0.98010158,2555.4,2555.2,0.01179473]
[1646977567454,1.44210158,2555.4,2555.2,0.01179473]
[1646977567855,0.462,2555.4,2555.2,0.01179473]
[1646977568252,0.462,2555.4,2554.4,2.37732]
[1646977568451,3.5,2555.3,2555.2,0.00289428]
[1646977568653,0.462,2555.3,2555.2,0.00289428]
[1646977568853,1.462,2555.3,2555.2,0.00289428]
[1646977569051,0.462,2555.3,2555.2,0.00289428]
[1646977569254,1.1321,2555.8,2555.2,0.00289428]
[1646977569452,6.1522355,2556.1,2555.1,3.5]
[1646977569453,2.7335,2556.1,2555.1,3.5]
[1646977569710,3.0,2556.3,2555.1,0.00289434]
[1646977570097,1.04750231,2556.2,2555.1,0.00289434]
[1646977570296,0.462,2556.2,2555.1,0.00289434]
[1646977570502,0.462,2556.2,2555.3,0.06899351]
[1646977570702,3.3205,2556.4,2555.4,0.08732715]
[1646977570703,2.3423,2556.4,2555.4,0.08732715]
[1646977570900,2.8182,2556.5,2555.5,0.00086817]
[1646977571199,1.13126216,2556.5,2555.5,0.00086817]
[1646977571598,0.97819,2556.4,2555.5,0.00086817]
[1646977571798,0.97819,2556.4,2555.4,0.08732715]
[1646977572198,0.97819,2556.4,2555.9,0.0008015]
[1646977572602,1.09222606,2556.1,2555.9,0.0008015]
[1646977572807,4.91539911,2556.0,2555.9,0.0008015]
[1646977573201,10.41903393,2556.0,2555.0,0.25]
[1646977573446,10.41903393,2556.0,2554.8,0.07303609]
[1646977573447,3.5,2555.9,2554.8,0.07303609]
[1646977573647,1.06198544,2555.6,2554.8,0.07303609]
[1646977573849,0.462,2555.5,2554.8,0.07303609]
[1646977574048,0.97852,2555.4,2554.8,0.07303609]
[1646977574248,0.462,2555.3,2554.8,0.07303609]
[1646977575848,0.462,2555.3,2554.9,0.00329052]
[1646977576549,0.462,2555.3,2554.8,0.07303609]
[1646977576749,0.97857,2555.2,2554.5,0.5]
[1646977576953,0.462,2555.1,2555.0,0.00329045]
[1646977577603,0.05626572,2554.9,2554.4,7.33]
[1646977577803,0.05626572,2554.9,2553.9,7.33]
[1646977577804,0.97895,2554.7,2553.9,7.33]
[1646977578001,8.34371529,2554.9,2553.8,1.0]
[1646977578002,0.05144434,2554.5,2553.8,1.0]
[1646977578205,0.462,2554.4,2553.8,1.0]
[1646977578403,0.05461036,2554.3,2553.8,1.0]
[1646977578601,0.462,2554.2,2553.8,1.0]
[1646977578801,0.97902,2554.0,2553.8,1.0]
[1646977579001,1.44102,2554.0,2553.6,1.1799]
[1646977579202,1.44102,2554.0,2553.3,4.9384]
[1646977579404,1.44102,2554.0,2553.1,1.839]
[1646977579604,1.44102,2554.0,2553.2,0.06967283]
[1646977580403,1.44102,2554.0,2553.5,0.00096302]
[1646977581551,1.44102,2554.0,2553.2,0.06967283]
[1646977581751,1.44102,2554.0,2553.6,0.00320989]
[1646977582664,1.44102,2554.0,2553.3,0.06957032]
[1646977582859,3.5,2554.7,2553.7,0.00320982]
[1646977582860,0.9788,2554.7,2553.7,0.00320982]
[1646977583058,0.05739961,2554.7,2553.8,0.97868]
[1646977583265,0.05739961,2554.7,2553.8,1.04146752]
[1646977583659,0.05739961,2554.7,2553.8,1.03996081]
[1646977583860,4.7149,2555.2,2553.8,2.27386081]
[1646977583861,0.97872,2554.8,2553.8,2.27386081]
[1646977584060,3.0,2554.5,2554.1,0.00320926]
[1646977584259,0.51598032,2554.4,2554.1,0.00320926]
[1646977584458,0.06007251,2554.3,2554.1,0.00320926]
[1646977584713,0.52207251,2554.3,2554.1,0.00320926]
[1646977585103,0.52207251,2554.3,2553.5,0.07784549]
[1646977585308,0.52207251,2554.3,2553.5,0.37784549]
[1646977585504,0.52207251,2554.3,2553.5,0.07784549]
[1646977586304,0.97894,2554.2,2553.5,0.07784549]
[1646977586504,1.02288035,2554.0,2553.5,0.07784549]
[1646977586704,0.97894,2554.2,2553.5,0.07784549]
[1646977588859,0.05330895,2554.1,2553.7,0.00320174]
[1646977589861,0.05330895,2554.1,2553.3,4.4789]
[1646977590061,0.05330895,2554.1,2553.8,0.00320167]
[1646977591063,0.05330895,2554.1,2553.4,0.07309995]
[1646977591369,0.05330895,2554.1,2553.8,0.00320161]
[1646977592196,0.05330895,2554.1,2553.4,0.07309995]
[1646977592602,0.05330895,2554.1,2553.8,0.00320161]
[1646977593206,0.462,2554.0,2553.8,0.00320161]
[1646977593406,0.05996223,2553.9,2553.8,0.00320161]
[1646977593601,0.05996223,2553.9,2553.3,7.33]
[1646977593602,0.52196223,2553.9,2553.3,7.33]
[1646977593804,0.979301,2553.8,2553.3,7.33]
[1646977594006,0.462,2553.7,2553.2,1.2339]
[1646977594203,0.462,2553.6,2553.1,0.06328744]
[1646977594405,0.462,2553.6,2553.1,0.06122656]
[1646977594602,0.06512675,2554.1,2553.1,0.06122656]
[1646977594804,0.05245266,2554.4,2553.2,0.06432932]
[1646977595004,0.05245266,2554.4,2553.2,0.26002932]
[1646977595201,0.51445266,2554.4,2553.3,0.07634824]
[1646977595403,1.49336266,2554.4,2553.3,3.57634824]
[1646977595601,0.965576,2554.2,2553.4,0.07778105]
[1646977596447,0.965576,2554.2,2553.4,1.05665105]
[1646977597147,1.427576,2554.2,2553.4,1.05665105]
[1646977597352,1.427576,2554.2,2553.7,0.00316178]
[1646977597551,2.0,2554.1,2553.4,1.05314663]
[1646977597752,2.406546,2554.2,2553.4,0.07778105]
[1646977598151,0.05447145,2554.1,2553.4,0.07778105]
[1646977599351,0.05735653,2554.3,2553.4,0.07778105]
[1646977600001,0.05735653,2554.3,2553.5,0.97885]
[1646977600198,0.05735653,2554.3,2553.4,0.07778105]
[1646977600801,0.462,2554.2,2553.4,0.07778105]
[1646977601002,4.0,2553.5,2552.8,1.786]
[1646977601205,0.53959098,2553.4,2552.8,1.786]
[1646977601404,1.4413236,2553.4,2552.7,2.9153]
[1646977601601,0.07882278,2553.3,2552.8,3.5]
[1646977601915,0.06975549,2553.7,2552.8,3.56312565]
[1646977602103,0.06975549,2553.7,2552.9,0.00094644]
[1646977602307,0.07591432,2554.0,2553.0,0.1958]
[1646977602505,0.07591432,2554.0,2553.1,1.81155764]
[1646977602805,4.3065049,2554.3,2553.4,0.9788]
[1646977602806,0.07677949,2554.2,2553.4,0.9788]
[1646977603007,0.07677949,2554.2,2553.4,4.4788]
[1646977603204,0.07677949,2554.2,2553.4,3.5]
[1646977603460,0.07677949,2554.2,2553.4,0.35872089]
[1646977603662,0.07677949,2554.2,2553.5,0.97881]
[1646977603860,0.07677949,2554.2,2553.5,4.47881]
[1646977604259,0.07677949,2554.2,2553.5,3.5]
[1646977604464,0.07677949,2554.2,2553.6,0.0009462]
[1646977605460,0.07677949,2554.2,2553.4,0.05777464]
[1646977605660,0.07677949,2554.2,2553.6,0.003154]
[1646977606661,0.07677949,2554.2,2553.4,0.25347464]
[1646977607066,0.07677949,2554.2,2553.6,0.003154]
[1646977607508,1.66997949,2554.4,2553.6,0.003154]
[1646977607706,0.51991845,2554.4,2553.6,0.07836277]
[1646977607906,0.51991845,2554.4,2553.6,0.07520877]
[1646977608108,0.05913193,2554.3,2553.5,3.8]
[1646977608307,0.05913193,2554.3,2553.6,0.003154]
[1646977608711,0.462,2554.6,2553.6,0.003154]
[1646977608908,0.06411182,2554.5,2553.6,0.003154]
[1646977609109,0.06411182,2554.5,2553.5,5.73378948]
[1646977609311,0.25961182,2554.5,2553.6,0.0157699]
[1646977609509,0.25961182,2554.5,2553.6,3.5157699]
[1646977609911,0.06411182,2554.5,2553.6,5.7732199]
[1646977610110,0.00404203,2554.7,2553.8,0.07659746]
[1646977610310,0.0635523,2554.9,2553.8,0.07659746]
[1646977610709,0.00394739,2554.7,2553.9,0.87454712]
[1646977610950,0.00394739,2554.7,2554.0,3.5]
[1646977611151,0.00394739,2554.7,2554.0,3.8933]
[1646977611455,0.462,2555.2,2554.1,0.0653488]
[1646977611456,0.06339946,2555.2,2554.1,0.0653488]
[1646977611850,0.00394775,2554.7,2554.1,0.0653488]
[1646977612455,0.00394775,2554.7,2554.1,1.95697]
[1646977612656,0.06339946,2555.2,2554.2,3.96333204]
[1646977612856,0.06339946,2555.2,2554.3,0.07298432]
[1646977613557,0.06339946,2555.2,2554.3,1.05146432]
[1646977613858,0.06339946,2555.2,2554.4,3.5]
[1646977614058,0.06339946,2555.2,2554.5,0.07408364]
[1646977614258,0.00384605,2554.9,2554.5,0.07408364]
[1646977614460,0.00384605,2554.9,2554.7,0.3933]
[1646977614714,0.05552918,2556.1,2554.9,5.5]
[1646977614906,0.05552918,2556.1,2555.0,3.8933]
[1646977615102,0.24883497,2556.4,2555.3,1.1845716]
[1646977615302,0.24883497,2556.4,2555.4,3.56010123]
[1646977615500,0.05373497,2556.4,2555.4,3.56010123]
[1646977615702,0.05373497,2556.4,2555.7,0.97789]
[1646977615905,0.05373497,2556.4,2555.7,4.47789]
[1646977616102,0.05373497,2556.4,2555.7,0.97789]
[1646977616502,0.05373497,2556.4,2555.5,7.41172]
[1646977616706,0.05373497,2556.4,2555.5,3.5]
[1646977616904,0.05373497,2556.4,2555.4,2.4528]
[1646977617103,1.12372758,2556.2,2555.4,2.4528]
[1646977617306,0.05176592,2556.1,2555.2,5.0451]
[1646977617910,0.05176592,2556.1,2555.2,1.2451]
[1646977618111,0.05176592,2556.1,2554.9,0.25]
[1646977618112,3.0,2555.8,2554.9,0.25]
[1646977618310,3.0,2555.8,2554.4,0.00094877]
[1646977618311,5.83583932,2555.7,2554.4,0.00094877]
[1646977618553,1.61418546,2555.6,2554.4,0.00094877]
[1646977618754,0.3,2555.4,2554.2,0.32003204]
[1646977618953,0.3,2555.4,2554.4,0.00316256]
[1646977618954,1.11163411,2554.9,2554.4,0.00316256]
[1646977619153,0.462,2554.8,2554.4,0.00316256]
[1646977619352,0.06520969,2554.7,2554.4,0.00316256]
[1646977619554,0.52720969,2554.7,2554.4,0.00316256]
[1646977619752,0.05767282,2554.6,2554.4,0.00316256]
[1646977619953,0.05767282,2554.6,2554.2,0.07003204]
[1646977620354,3.55767282,2554.6,2554.2,0.07003204]
[1646977620554,0.05720399,2554.4,2554.2,0.07003204]
[1646977620756,0.462,2554.5,2554.2,0.07003204]
[1646977620956,0.462,2554.5,2553.7,2.8369]
[1646977620957,0.06594444,2554.4,2553.7,2.8369]
[1646977621159,0.52626709,2554.3,2553.6,1.4584]
[1646977621362,0.462,2554.3,2553.6,1.2084]
[1646977621563,0.06165028,2554.2,2553.6,1.2084]
[1646977621762,0.462,2554.1,2553.6,1.2084]
[1646977621961,0.06066159,2554.0,2553.6,1.2084]
[1646977622210,0.06066159,2554.0,2553.4,7.58984768]
[1646977622211,0.06066159,2554.0,2553.4,7.5257]
[1646977622405,0.06066159,2554.0,2553.4,7.8257]
[1646977622606,0.462,2554.4,2553.7,0.00315905]
[1646977622808,0.05878285,2554.3,2553.7,0.00315905]
[1646977623405,0.05878285,2554.3,2553.4,7.8257]
[1646977623406,0.05878285,2554.3,2553.6,0.97874]
[1646977623806,0.05878285,2554.3,2553.9,0.0031588]
[1646977624709,0.05878285,2554.3,2553.6,0.97874]
[1646977624909,0.05878285,2554.3,2554.0,0.00315868]
[1646977625949,0.05878285,2554.3,2553.6,0.97874]
[1646977626150,0.05878285,2554.3,2554.0,0.00315862]
[1646977626349,0.06549248,2554.5,2554.0,0.00315862]
[1646977627151,0.06549248,2554.5,2553.7,0.97868]
[1646977627355,0.06549248,2554.5,2554.1,0.00280316]
[1646977627755,0.52749248,2554.5,2554.1,0.00280316]
[1646977627959,0.05353783,2554.4,2554.1,0.00280316]
[1646977628256,0.05353783,2554.4,2553.7,0.0112146]
[1646977628456,0.05353783,2554.4,2553.6,0.06822937]
[1646977630006,0.462,2554.3,2553.5,1.3242]
[1646977630205,0.0645455,2554.2,2553.5,1.1285]
[1646977630807,1.0435155,2554.2,2553.5,1.1285]
[1646977631009,0.05276321,2554.1,2553.7,0.00094565]
[1646977632007,0.51476321,2554.1,2553.5,1.1285]
[1646977632208,0.05297444,2554.0,2553.8,0.00094564]
[1646977632813,0.462,2554.3,2553.8,0.00094564]
[1646977633013,0.06299148,2554.2,2553.8,0.00094564]
[1646977633220,0.06299148,2554.2,2553.5,2.10728]
[1646977633450,0.06299148,2554.2,2553.9,0.00094558]
[1646977634250,0.06299148,2554.2,2553.7,0.97868]
[1646977634652,0.06299148,2554.2,2553.9,0.00315193]
[1646977635256,0.05120543,2554.7,2553.9,0.00315193]
[1646977635457,0.00403078,2555.0,2553.9,2.35368193]
[1646977635655,0.05552848,2555.0,2554.0,0.37050836]
[1646977636055,0.05552848,2555.0,2554.0,0.07050836]
[1646977636056,0.97250161,2554.9,2554.0,0.07050836]
[1646977636455,0.05659643,2554.8,2554.0,0.07050836]
[1646977636656,0.05809519,2555.0,2554.0,1.04903836]
[1646977636857,0.05406441,2555.0,2554.0,1.04903836]
[1646977637058,0.05809562,2555.0,2554.3,0.0031515]
[1646977637711,0.00403121,2555.0,2554.3,0.0031515]
[1646977637909,0.00403121,2555.0,2554.4,0.25873646]
[1646977638109,0.06407376,2555.4,2554.4,0.25873646]
[1646977638311,0.06407376,2555.4,2554.4,0.45633646]
[1646977638511,0.00264588,2555.0,2554.4,0.45948777]
[1646977638708,0.00264588,2555.0,2554.4,0.75948777]
[1646977639108,0.00264588,2555.0,2554.4,1.73481646]
[1646977639307,0.06393294,2555.3,2554.4,1.73481646]
[1646977641068,0.1957,2555.7,2554.7,1.95634]
[1646977641069,0.6577,2555.7,2554.7,1.95634]
[1646977641260,0.462,2555.7,2554.8,0.3933]
[1646977641464,0.06451887,2555.6,2554.8,0.3933]
[1646977641760,0.06451887,2555.6,2554.9,0.6847129]
[1646977642060,0.06451887,2555.6,2555.1,0.97812]
[1646977642264,0.462,2555.9,2555.1,0.97812]
[1646977642464,0.05577566,2555.8,2555.2,0.97808]
[1646977642662,0.05997127,2556.0,2555.2,0.97808]
[1646977642863,0.1955,2556.2,2555.3,0.3]
[1646977642864,1.07226159,2556.2,2555.3,0.3]
[1646977643064,0.00403159,2555.6,2555.3,0.3]
[1646977644065,0.06267199,2556.1,2555.4,1.95611]
[1646977644265,0.0167036,2556.1,2555.4,1.95611]
[1646977644712,0.0167036,2556.1,2555.3,0.077847]
[1646977644900,0.462,2556.1,2555.3,0.077847]
[1646977645101,0.23049816,2556.0,2555.3,0.077847]
[1646977645302,1.03285487,2555.8,2555.3,0.077847]
[1646977645503,0.23049816,2556.0,2555.1,0.06736693]
[1646977646308,0.23049816,2556.0,2555.1,1.04555693]
[1646977646505,0.03499816,2556.0,2555.1,1.04555693]
[1646977647308,0.03499816,2556.0,2555.1,1.73022073]
[1646977647510,0.03499816,2556.0,2555.3,0.97812]
[1646977647709,0.03499816,2556.0,2555.3,1.27812]
[1646977647918,0.00403149,2555.7,2555.3,1.27812]
[1646977648768,0.03499816,2556.0,2555.3,1.27812]
[1646977649164,0.00403143,2555.7,2555.4,0.97807]
[1646977650065,0.03499816,2556.0,2555.4,0.97807]
[1646977650266,0.00403149,2555.7,2555.4,0.97807]
[1646977650867,0.00403149,2555.7,2555.3,0.3]
[1646977651268,0.03499816,2556.0,2555.3,0.3]
[1646977651471,0.00403143,2555.7,2555.3,0.3]
[1646977652509,0.03499816,2556.0,2555.3,0.3]
[1646977652710,0.00393653,2555.7,2555.3,0.3]
[1646977653612,0.89899965,2555.0,2554.9,2.8586]
[1646977653813,1.36099965,2555.0,2554.7,0.00085443]
[1646977654112,0.06518553,2554.9,2554.7,0.00085443]
[1646977654310,0.462,2554.8,2554.7,0.00085443]
[1646977654709,0.462,2554.8,2553.9,10.8249]
[1646977654909,0.06734742,2554.7,2553.9,10.4334]
[1646977655109,0.0592695,2554.9,2554.6,0.00085445]
[1646977655409,0.06087762,2554.8,2554.6,0.00085445]
[1646977655608,0.462,2554.7,2554.6,0.00085445]
[1646977656059,0.462,2554.7,2554.0,0.06745927]
[1646977656257,0.462,2554.7,2554.1,0.3933]
[1646977656459,0.462,2554.7,2554.5,0.00297407]
[1646977657061,0.05643366,2554.6,2554.5,0.00297407]
[1646977657262,0.86153034,2554.9,2554.1,0.3]
[1646977657472,0.86153034,2554.9,2554.5,0.00297412]
[1646977657473,0.06800259,2554.8,2554.5,0.00297412]
[1646977658465,0.06800259,2554.8,2553.9,7.88]
[1646977658663,0.06800259,2554.8,2554.5,0.00297407]
[1646977659717,0.06800259,2554.8,2554.2,0.1957]
[1646977659907,0.06800259,2554.8,2554.5,0.00249557]
[1646977660909,0.06800259,2554.8,2554.1,0.00998379]
[1646977660910,0.06800259,2554.8,2553.9,7.58]
[1646977661109,0.06800259,2554.8,2554.1,0.00299514]
[1646977661914,0.06800259,2554.8,2554.0,0.6497466]
[1646977662110,0.05673631,2555.0,2554.1,0.05972068]
[1646977662312,0.51873631,2555.0,2554.1,0.05972068]
[1646977662514,0.06324124,2554.9,2554.1,0.05972068]
[1646977663555,0.06324124,2554.9,2554.4,0.0008999]
[1646977664356,0.06324124,2554.9,2554.1,0.05972068]
[1646977664757,0.06324124,2554.9,2554.5,0.00299948]
[1646977665556,0.06324124,2554.9,2554.2,0.26313448]
[1646977665958,0.06324124,2554.9,2554.6,0.00299942]
[1646977666159,5.67401,2555.3,2554.6,0.00299942]
[1646977666160,0.6575,2555.3,2554.6,0.00299942]
[1646977666358,0.25095554,2555.6,2554.6,0.07295068]
[1646977666559,0.05565554,2555.6,2554.6,0.07295068]
[1646977666959,0.05565554,2555.6,2554.6,0.06995126]
[1646977667218,0.05565554,2555.6,2554.7,0.9807397]
[1646977667412,0.51765554,2555.6,2554.7,0.0024897]
[1646977667711,0.05430915,2555.5,2554.7,0.0024897]
[1646977668113,0.05430915,2555.5,2554.5,2.64977]
[1646977668414,0.00381863,2555.7,2554.7,0.0024897]
[1646977668611,0.06952968,2555.7,2554.8,1.17373]
[1646977668812,0.06952968,2555.7,2554.8,1.47373]
[1646977669012,0.06952968,2555.7,2555.0,0.06879496]
[1646977669213,0.00381863,2555.7,2555.0,0.06879496]
[1646977669614,0.00381863,2555.7,2555.0,2.93449]
[1646977669822,0.00381863,2555.7,2555.2,0.06106205]
[1646977670014,0.00381863,2555.7,2555.3,0.1955]
[1646977671653,0.91507275,2556.1,2555.3,0.1955]
[1646977671855,0.05831228,2556.0,2555.3,0.4955]
[1646977672261,0.05831228,2556.0,2555.3,0.3]
[1646977672662,0.00385337,2555.7,2555.0,0.06482957]
[1646977673358,0.00402255,2555.7,2555.0,0.06482957]
[1646977673958,0.00402255,2555.7,2555.0,2.02103957]
[1646977674359,0.06643283,2555.9,2555.0,2.02103957]
[1646977674560,0.00402255,2555.7,2555.0,2.02103957]
[1646977674807,0.8453015,2555.7,2555.0,2.02103957]
[1646977675011,0.00402255,2555.7,2555.0,2.02103957]
[1646977675209,0.00402255,2555.7,2555.0,0.06482957]
[1646977675506,0.06643283,2555.9,2555.1,0.1955]
[1646977675708,0.00402255,2555.7,2555.1,0.1955]
[1646977676707,0.05685168,2556.0,2555.1,0.1955]
[1646977676910,0.003452,2555.7,2555.1,0.1955]
[1646977677811,0.00189808,2555.7,2555.1,0.1955]
[1646977678010,0.05685168,2556.0,2555.1,0.1955]
[1646977678211,0.003452,2555.7,2555.1,0.1955]
[1646977678453,0.003452,2555.7,2555.1,1.17359]
[1646977678653,0.003452,2555.7,2555.1,2.45174]
[1646977678853,0.003452,2555.7,2555.1,2.51459516]
[1646977679055,0.05685168,2556.0,2555.1,3.42985]
[1646977679255,0.05685168,2556.0,2555.1,3.50425203]
[1646977679862,0.05685168,2556.0,2555.2,0.9781]
[1646977680064,0.05685168,2556.0,2555.3,0.3]
[1646977680962,0.05685168,2556.0,2555.4,0.97805]
[1646977681360,0.05685168,2556.0,2555.4,1.27805]
[1646977681763,0.00402476,2555.8,2555.4,1.27805]
[1646977682811,0.05685168,2556.0,2555.4,1.27805]
[1646977683012,0.00381017,2555.8,2555.4,1.27805]
[1646977684014,0.05685168,2556.0,2555.4,1.27805]
[1646977684214,0.00381017,2555.8,2555.4,1.27805]
[1646977684616,0.00381017,2555.8,2555.4,0.3]
[1646977685015,0.00381017,2555.8,2555.3,0.4955]
[1646977685220,0.05685168,2556.0,2555.3,0.1955]
[1646977685416,0.00381017,2555.8,2555.3,0.4955]
[1646977685617,0.00381017,2555.8,2555.3,0.1955]
[1646977685815,0.00381017,2555.8,2555.3,0.4955]
[1646977686458,0.05685168,2556.0,2555.3,0.4955]
[1646977686660,0.95521787,2555.8,2555.3,0.4955]
[1646977686959,0.95521787,2555.8,2555.3,0.1955]
[1646977686960,0.00381011,2555.8,2555.3,0.1955]
[1646977687563,0.06805275,2555.8,2555.3,0.1955]
[1646977687962,0.0627559,2555.6,2555.3,0.1955]
[1646977690607,0.0627559,2555.6,2555.0,0.97817]
[1646977693114,0.92864611,2554.9,2554.8,0.9808286]
[1646977693316,3.5,2555.1,2554.8,0.0025886]
[1646977693561,4.05930482,2555.2,2554.7,0.5]
[1646977693562,0.06080524,2554.9,2554.7,0.5]
[1646977693767,0.462,2554.8,2554.7,0.5]
[1646977694563,0.462,2554.8,2554.3,0.25]
[1646977694762,0.462,2554.8,2553.9,0.07212768]
[1646977694961,0.462,2554.8,2554.2,0.00311675]
[1646977695360,1.2137,2555.1,2554.2,0.00311675]
[1646977695565,1.2137,2555.1,2554.2,1.56856725]
[1646977695760,1.2137,2555.1,2554.3,0.3]
[1646977696360,1.2137,2555.1,2554.2,7.63]
[1646977696860,1.2137,2555.1,2554.4,0.97834]
[1646977697061,3.72390431,2555.4,2554.4,2.25672]
[1646977697314,1.28320431,2555.4,2554.4,2.25672]
[1646977697516,1.28320431,2555.4,2554.5,0.002597]